bitfinex/quotes_BTCUSD_20240828
["timestamp","ask_amount","ask_price","bid_price","bid_amount"]
[1724817543116,0.1396,59786.0,59784.0,0.02804]
[1724817544164,0.1396,59786.0,59785.0,0.03354]
[1724817544810,0.1386,59786.0,59785.0,0.03354]
[1724817545250,0.1396,59786.0,59785.0,0.04754]
[1724817545832,0.1396,59786.0,59785.0,0.06154]
[1724817546704,0.1396,59786.0,59785.0,0.028]
[1724817551113,0.076,59786.0,59785.0,0.028]
[1724817554435,0.001,59786.0,59785.0,0.028]
[1724817554637,0.001,59786.0,59785.0,0.06154]
[1724817555210,0.001,59786.0,59785.0,0.028]
[1724817555814,0.001,59786.0,59785.0,0.02818882]
[1724817556217,0.001,59786.0,59785.0,0.4412783]
[1724817556421,0.001819,59786.0,59785.0,0.4412783]
[1724817556627,0.001819,59786.0,59785.0,0.48178253]
[1724817556878,0.001819,59786.0,59785.0,0.43204144]
[1724817557204,0.000819,59786.0,59785.0,0.41804144]
[1724817557623,0.001819,59786.0,59785.0,0.43204144]
[1724817558064,0.000819,59786.0,59785.0,0.40404144]
[1724817558283,0.000819,59786.0,59785.0,0.45994487]
[1724817558432,0.001819,59786.0,59785.0,0.48794487]
[1724817558648,0.001819,59786.0,59785.0,0.43204144]
[1724817560501,0.001819,59786.0,59785.0,0.90288172]
[1724817561120,0.000819,59786.0,59785.0,0.88888172]
[1724817561378,0.000819,59786.0,59785.0,0.78935066]
[1724817561521,0.000819,59786.0,59785.0,0.9833285]
[1724817561917,0.000819,59786.0,59785.0,1.00821009]
[1724817562182,0.000819,59786.0,59785.0,0.70879708]
[1724817562383,0.000819,59786.0,59785.0,0.87691561]
[1724817562679,0.000819,59786.0,59785.0,0.73849708]
[1724817562915,0.000819,59786.0,59785.0,0.75249708]
[1724817563244,0.000819,59786.0,59785.0,0.75442605]
[1724817563447,0.000819,59786.0,59785.0,0.65805618]
[1724817563665,1e-08,59786.0,59785.0,0.65805618]
[1724817564033,1e-08,59786.0,59785.0,0.64405618]
[1724817564247,0.000819,59788.0,59785.0,0.56545618]
[1724817564454,0.000819,59788.0,59787.0,0.03854]
[1724817564660,0.000819,59788.0,59787.0,0.52284922]
[1724817564868,0.0270427,59788.0,59787.0,0.52284922]
[1724817565336,0.0270427,59788.0,59787.0,0.69010922]
[1724817565508,0.0270427,59788.0,59787.0,0.51784922]
[1724817565714,0.0270427,59788.0,59787.0,0.74939876]
[1724817565931,0.0270427,59788.0,59787.0,0.71969876]
[1724817566105,0.0270427,59788.0,59787.0,0.5536953]
[1724817566323,0.0270427,59788.0,59787.0,0.10784]
[1724817566524,0.0270427,59788.0,59787.0,0.15756813]
[1724817567159,0.0270427,59788.0,59787.0,0.17156813]
[1724817567368,0.0270427,59788.0,59787.0,0.34011977]
[1724817567601,0.0270427,59788.0,59787.0,0.35097564]
[1724817567832,0.0270427,59788.0,59787.0,0.73125573]
[1724817568048,0.0270427,59788.0,59787.0,0.67067173]
[1724817568269,0.0270427,59788.0,59787.0,0.68467173]
[1724817568479,0.0270427,59788.0,59787.0,0.77012866]
[1724817568898,0.0270427,59788.0,59787.0,0.78412866]
[1724817569129,0.0270427,59788.0,59787.0,0.77012866]
[1724817569336,0.0270427,59788.0,59787.0,0.78412866]
[1724817569544,0.0270427,59788.0,59787.0,0.77012866]
[1724817569771,0.0270427,59788.0,59787.0,0.68467173]
[1724817569978,0.0270427,59788.0,59787.0,0.80891214]
[1724817570191,0.0270427,59788.0,59787.0,0.79491214]
[1724817570641,0.1,59797.0,59791.0,0.03354]
[1724817570862,0.1,59797.0,59796.0,0.324168]
[1724817571085,0.1,59797.0,59796.0,0.32435678]
[1724817571734,0.2457,59797.0,59796.0,0.03372878]
[1724817571944,0.2457,59797.0,59796.0,0.00018878]
[1724817572578,0.2457,59797.0,59796.0,0.01418878]
[1724817572992,0.2457,59797.0,59796.0,0.02818878]
[1724817575347,0.1808,59797.0,59796.0,0.02818878]
[1724817578036,0.1,59797.0,59796.0,0.12382878]
[1724817578237,0.1,59797.0,59796.0,0.13918166]
[1724817579776,0.12622371,59797.0,59796.0,0.13918166]
[1724817579936,0.1,59797.0,59796.0,0.13918166]
[1724817581138,0.100819,59797.0,59796.0,0.13918166]
[1724817581355,0.100819,59797.0,59796.0,0.15019324]
[1724817581538,0.100819,59797.0,59796.0,0.07274036]
[1724817581739,0.179519,59797.0,59796.0,0.07274036]
[1724817581996,0.242719,59797.0,59796.0,0.06172878]
[1724817582217,0.242719,59797.0,59796.0,0.02818878]
[1724817582425,0.242719,59797.0,59796.0,0.02822878]
[1724817583163,0.2689429,59797.0,59796.0,0.02822878]
[1724817586411,0.2689429,59797.0,59796.0,0.02822877]
[1724817586960,0.29583719,59797.0,59796.0,0.02822877]
[1724817587165,0.27312462,59797.0,59796.0,0.02822877]
[1724817587381,0.27312462,59797.0,59796.0,0.01422877]
[1724817587595,0.27312462,59797.0,59796.0,0.02022877]
[1724817587741,0.27312462,59797.0,59796.0,0.00622877]
[1724817587949,0.27312462,59797.0,59796.0,0.00022877]
[1724817588157,0.27312462,59797.0,59796.0,0.00122877]
[1724817588604,0.27312462,59797.0,59796.0,0.00022877]
[1724817588952,0.27312462,59797.0,59796.0,0.01022877]
[1724817589669,0.27312462,59797.0,59796.0,0.00022877]
[1724817589877,0.27612462,59797.0,59796.0,0.00022877]
[1724817591960,0.2719429,59797.0,59796.0,0.00022877]
[1724817592514,0.2689429,59797.0,59796.0,0.00022877]
[1724817592714,0.2719429,59797.0,59796.0,0.00022877]
[1724817593511,0.2689429,59797.0,59796.0,0.00022877]
[1724817593714,0.2719429,59797.0,59796.0,0.00022877]
[1724817594050,0.2729429,59797.0,59796.0,0.00022877]
[1724817594438,0.2719429,59797.0,59796.0,0.00022877]
[1724817594644,0.2729429,59797.0,59796.0,0.00022877]
[1724817595243,0.2699429,59797.0,59796.0,0.00022877]
[1724817595445,0.2699429,59797.0,59777.0,0.02431519]
[1724817595446,0.1438,59795.0,59777.0,0.02431519]
[1724817595834,0.0612,59791.0,59777.0,0.06826608]
[1724817596070,0.08578188,59790.0,59777.0,0.02431519]
[1724817596303,0.08578188,59790.0,59777.0,0.03543859]
[1724817596535,0.08578188,59790.0,59777.0,0.02431519]
[1724817596758,0.0816,59788.0,59777.0,0.02431519]
[1724817597026,0.0816,59786.0,59777.0,0.02431519]
[1724817597245,0.00418208,59785.0,59777.0,0.02431519]
[1724817597477,0.00418208,59785.0,59777.0,0.02931519]
[1724817597695,0.02622904,59784.0,59777.0,0.02931519]
[1724817597921,0.02622904,59784.0,59777.0,0.02431519]
[1724817598146,0.0816,59786.0,59777.0,0.03131519]
[1724817598334,0.0816,59786.0,59777.0,0.06414536]
[1724817598742,0.0816,59786.0,59777.0,0.04131519]
[1724817599326,0.0816,59786.0,59777.0,0.03531519]
[1724817599528,0.0816,59786.0,59777.0,0.04331519]
[1724817599946,0.0816,59786.0,59777.0,0.03231519]
[1724817600147,0.0816,59786.0,59777.0,0.04431519]
[1724817601136,0.02622888,59784.0,59777.0,0.03231519]
[1724817601339,0.0816,59786.0,59777.0,0.03231519]
[1724817601340,0.08578193,59786.0,59777.0,0.03231519]
[1724817601740,0.08578193,59786.0,59777.0,0.04231519]
[1724817601955,0.066,59785.0,59777.0,0.04231519]
[1724817602154,0.066,59782.0,59777.0,0.018]
[1724817602377,0.0827,59780.0,59777.0,0.018]
[1724817602725,0.0827,59780.0,59777.0,0.01]
[1724817602726,0.00418249,59779.0,59777.0,0.01]
[1724817602930,0.00418249,59779.0,59777.0,0.018]
[1724817603549,0.00418249,59779.0,59772.0,0.4705]
[1724817603697,0.00418249,59779.0,59770.0,0.0657]
[1724817603904,0.00418249,59779.0,59777.0,0.01]
[1724817604079,0.00418249,59779.0,59770.0,0.0657]
[1724817604282,0.0827,59778.0,59766.0,0.03354]
[1724817604481,0.0827,59776.0,59766.0,0.09924]
[1724817605735,0.1487,59776.0,59766.0,0.09924]
[1724817605885,0.1487,59776.0,59775.0,0.0029009]
[1724817606090,0.1487,59776.0,59775.0,0.0069009]
[1724817606290,0.0827,59776.0,59775.0,0.0069009]
[1724817606635,0.0827,59776.0,59775.0,0.0029009]
[1724817607192,0.0827,59776.0,59775.0,0.0039009]
[1724817607464,0.0827,59776.0,59775.0,0.0089009]
[1724817607661,0.0827,59776.0,59775.0,0.0039009]
[1724817608088,0.0827,59776.0,59775.0,0.0079009]
[1724817608307,0.0827,59776.0,59775.0,0.0049009]
[1724817608782,0.0827,59776.0,59775.0,0.0079009]
[1724817608987,0.0827,59776.0,59775.0,0.0039009]
[1724817609193,0.08688268,59776.0,59775.0,0.0039409]
[1724817610063,0.14888268,59776.0,59775.0,0.0039409]
[1724817610259,0.14888268,59776.0,59775.0,0.0079409]
[1724817610592,0.14888268,59776.0,59775.0,0.0039409]
[1724817610819,0.14888268,59776.0,59775.0,0.0079409]
[1724817611946,0.14888268,59776.0,59775.0,0.0009409]
[1724817612164,0.14888268,59776.0,59775.0,0.0049409]
[1724817612364,0.08688268,59776.0,59775.0,0.0049409]
[1724817612612,0.08688268,59776.0,59775.0,0.0109409]
[1724817613019,0.0827,59776.0,59775.0,0.0109409]
[1724817613220,0.08688256,59776.0,59775.0,0.0109409]
[1724817613430,0.08688256,59776.0,59775.0,0.0009409]
[1724817613859,0.08688256,59776.0,59775.0,0.0079409]
[1724817614034,0.08688256,59776.0,59775.0,0.0039409]
[1724817614237,0.08688256,59776.0,59775.0,0.0079409]
[1724817614651,0.08688256,59776.0,59775.0,0.0039409]
[1724817614876,0.08688256,59776.0,59775.0,0.0119409]
[1724817615090,0.0827,59776.0,59775.0,0.0119409]
[1724817615298,0.0827,59776.0,59775.0,0.0039409]
[1724817615409,0.0827,59776.0,59775.0,0.0009409]
[1724817615825,0.0827,59776.0,59775.0,0.0039409]
[1724817616229,0.0827,59776.0,59775.0,0.0009409]
[1724817616684,0.0827,59776.0,59775.0,0.0149409]
[1724817617117,0.08688254,59776.0,59775.0,0.0149409]
[1724817617319,0.08688254,59776.0,59775.0,0.0069409]
[1724817618081,0.08688254,59776.0,59775.0,0.0149409]
[1724817621733,0.0827,59776.0,59775.0,0.0149409]
[1724817622183,0.1089328,59776.0,59775.0,0.0149409]
[1724817622336,0.11311552,59776.0,59775.0,0.0149409]
[1724817622544,0.17441552,59776.0,59775.0,0.0149409]
[1724817627663,0.10760064,59776.0,59775.0,0.0149409]
[1724817628074,0.0262328,59776.0,59775.0,0.0149409]
[1724817629093,0.000819,59786.0,59775.0,0.0750409]
[1724817629306,0.000819,59786.0,59785.0,0.11635813]
[1724817630257,0.000819,59786.0,59783.0,0.0601]
[1724817630258,0.02704767,59786.0,59783.0,0.0601]
[1724817630750,0.02704767,59786.0,59780.0,0.03354]
[1724817630751,0.0798,59784.0,59780.0,0.03354]
[1724817630977,0.00418205,59783.0,59780.0,0.03354]
[1724817631203,0.00418205,59783.0,59776.0,0.03354]
[1724817631434,0.0798,59781.0,59776.0,0.03354]
[1724817631697,0.0642,59782.0,59776.0,0.03354]
[1724817631698,0.00418246,59780.0,59776.0,0.03354]
[1724817631924,0.0751,59779.0,59775.0,0.0009409]
[1724817632156,0.00418254,59778.0,59775.0,0.0009409]
[1724817632396,0.0751,59777.0,59775.0,0.0009409]
[1724817632621,0.00418254,59776.0,59775.0,0.0009409]
[1724817633788,0.00418253,59779.0,59775.0,0.0009409]
[1724817634024,0.00418253,59779.0,59775.0,0.0079409]
[1724817634722,0.00418253,59779.0,59775.0,0.0129409]
[1724817634982,0.00418253,59779.0,59775.0,0.0059409]
[1724817635196,0.00418253,59779.0,59775.0,0.0079409]
[1724817635648,0.0775,59778.0,59775.0,0.0079409]
[1724817635855,0.081,59776.0,59775.0,0.0079409]
[1724817636074,0.081,59776.0,59775.0,0.0109409]
[1724817636690,0.081,59776.0,59775.0,0.0039409]
[1724817636890,0.1468,59776.0,59775.0,0.0079409]
[1724817637313,0.1468,59776.0,59775.0,0.0039409]
[1724817637487,0.1468,59776.0,59775.0,0.0079409]
[1724817637799,0.1468,59776.0,59775.0,0.0009409]
[1724817638218,0.1468,59776.0,59775.0,0.0119409]
[1724817638819,0.1468,59776.0,59775.0,0.0079409]
[1724817639066,0.1468,59776.0,59775.0,0.0139409]
[1724817639281,0.03800852,59776.0,59775.0,0.0139409]
[1724817639905,0.03800852,59776.0,59775.0,0.0069409]
[1724817640217,0.03800852,59776.0,59775.0,0.0139409]
[1724817640671,0.03800852,59776.0,59775.0,0.0079409]
[1724817640818,0.03800852,59776.0,59775.0,0.0139409]
[1724817642024,0.00418274,59777.0,59775.0,0.0139409]
[1724817642274,0.0756,59776.0,59775.0,0.0139409]
[1724817642688,0.00418274,59777.0,59775.0,0.0139409]
[1724817643352,0.03041542,59777.0,59775.0,0.0139409]
[1724817643555,0.00418274,59777.0,59775.0,0.0009409]
[1724817644107,0.0756,59778.0,59776.0,0.0602]
[1724817644108,0.00418263,59778.0,59776.0,0.0602]
[1724817644343,0.0787,59782.0,59776.0,0.0602]
[1724817644535,0.0787,59782.0,59776.0,0.07508409]
[1724817644743,0.0787,59782.0,59776.0,0.0602]
[1724817645058,0.02623133,59781.0,59776.0,0.0602]
[1724817645293,0.02623133,59781.0,59775.0,0.0059409]
[1724817645498,0.02623133,59781.0,59775.0,0.0099409]
[1724817646225,0.00418256,59780.0,59775.0,0.0049409]
[1724817646688,0.00418256,59780.0,59776.0,0.003]
[1724817646883,0.00418256,59780.0,59775.0,0.0009409]
[1724817647000,0.00418256,59780.0,59775.0,0.0049409]
[1724817647201,0.00418256,59780.0,59775.0,0.0079409]
[1724817647405,0.00418256,59780.0,59775.0,0.0039409]
[1724817647634,0.00418256,59780.0,59775.0,0.01878499]
[1724817647842,0.00418256,59780.0,59775.0,0.0059409]
[1724817648042,0.00418256,59780.0,59775.0,0.0039409]
[1724817648420,0.00418256,59780.0,59775.0,0.0009409]
[1724817648814,0.00418256,59780.0,59775.0,0.0039409]
[1724817649379,0.00418256,59780.0,59775.0,0.0079409]
[1724817649788,0.00418256,59780.0,59775.0,0.0039409]
[1724817650138,0.00418256,59780.0,59775.0,0.0079409]
[1724817650550,0.00418256,59780.0,59775.0,0.0049409]
[1724817650962,0.00418256,59780.0,59775.0,0.0079409]
[1724817651533,0.00418256,59780.0,59775.0,0.0049409]
[1724817651882,0.00418256,59780.0,59775.0,0.0069409]
[1724817652291,0.00418256,59780.0,59775.0,0.0049409]
[1724817652624,0.00418256,59780.0,59775.0,0.0079409]
[1724817652914,0.00418256,59780.0,59775.0,0.0039409]
[1724817653328,0.00418256,59780.0,59775.0,0.0079409]
[1724817653773,0.0769,59779.0,59775.0,0.0079409]
[1724817653981,0.06978253,59778.0,59775.0,0.0049409]
[1724817654195,0.06978253,59778.0,59775.0,0.0079409]
[1724817654418,0.0769,59777.0,59775.0,0.0079409]
[1724817654635,0.00418289,59776.0,59775.0,0.0079409]
[1724817654863,0.00418289,59776.0,59775.0,0.0049409]
[1724817655083,0.00418289,59776.0,59775.0,0.0089409]
[1724817655537,0.00418289,59776.0,59775.0,0.0049409]
[1724817656274,0.00418289,59776.0,59775.0,0.0009409]
[1724817656516,0.00418289,59776.0,59775.0,0.0069409]
[1724817656739,0.00418289,59776.0,59775.0,0.0009409]
[1724817656977,0.00418289,59776.0,59775.0,0.0089409]
[1724817657221,0.00418289,59776.0,59775.0,0.0159409]
[1724817657709,0.08318289,59776.0,59775.0,0.0159409]
[1724817663757,0.079,59776.0,59775.0,0.0159409]
[1724817669510,0.1397,59776.0,59775.0,0.0159409]
[1724817670617,0.1659335,59776.0,59775.0,0.0159409]
[1724817673824,0.17011695,59776.0,59775.0,0.0159409]
[1724817674677,0.17511695,59776.0,59775.0,0.0159409]
[1724817675445,0.17511695,59776.0,59775.0,0.0089409]
[1724817675680,0.17811695,59776.0,59775.0,0.0019409]
[1724817675880,0.17911695,59776.0,59775.0,0.0029409]
[1724817676327,0.17611695,59776.0,59775.0,0.0019409]
[1724817676527,0.17911695,59776.0,59775.0,0.0029409]
[1724817677572,0.21369015,59776.0,59775.0,0.0029409]
[1724817678934,0.23669015,59776.0,59775.0,0.0029409]
[1724817679141,0.23750815,59776.0,59775.0,0.0029409]
[1724817679547,0.19993495,59776.0,59775.0,0.0019409]
[1724817679692,0.19893495,59776.0,59775.0,0.0009409]
[1724817679901,0.30193495,59776.0,59775.0,0.0019409]
[1724817680105,0.30293495,59776.0,59775.0,0.0029409]
[1724817680314,0.45988148,59776.0,59775.0,0.0029409]
[1724817681149,0.30293495,59776.0,59775.0,0.0029409]
[1724817682238,0.30285495,59776.0,59775.0,0.0029409]
[1724817685941,0.30285495,59776.0,59775.0,0.00251999]
[1724817688764,0.30285495,59776.0,59775.0,0.00151999]
[1724817688989,0.30997484,59776.0,59775.0,0.00051999]
[1724817689198,0.45557186,59776.0,59775.0,0.00251999]
[1724817689402,0.45657186,59776.0,59775.0,0.00251999]
[1724817689600,0.43216488,59758.0,59757.0,0.50540786]
[1724817689953,0.0801,59757.0,59755.0,0.0009398]
[1724817690164,0.08428461,59756.0,59755.0,0.0009398]
[1724817690895,0.14598461,59756.0,59755.0,0.0009398]
[1724817691494,0.15098461,59756.0,59755.0,0.0009398]
[1724817692052,0.22610125,59756.0,59755.0,0.0009398]
[1724817692472,0.15019901,59756.0,59755.0,0.0009398]
[1724817692678,0.15738398,59756.0,59755.0,0.0009398]
[1724817692884,0.14638398,59756.0,59755.0,0.0009398]
[1724817693085,0.15538398,59756.0,59755.0,0.0009398]
[1724817693357,0.26538398,59756.0,59755.0,0.0009398]
[1724817693586,0.25638398,59756.0,59755.0,0.0009398]
[1724817693792,0.26538398,59756.0,59755.0,0.0009398]
[1724817694511,0.25638398,59756.0,59755.0,0.0009398]
[1724817694747,0.24638398,59756.0,59755.0,0.0009398]
[1724817695070,0.38516425,59756.0,59755.0,0.0009398]
[1724817695273,0.39916425,59756.0,59755.0,0.0009398]
[1724817695592,0.38516425,59756.0,59755.0,0.0009398]
[1724817696038,0.41316425,59756.0,59755.0,0.0009398]
[1724817696447,0.39916425,59756.0,59755.0,0.0009398]
[1724817696596,0.38516425,59756.0,59755.0,0.0009398]
[1724817696794,0.39916425,59756.0,59755.0,0.0009398]
[1724817697038,0.41316425,59756.0,59755.0,0.0009398]
[1724817698098,0.39916425,59756.0,59755.0,0.0009398]
[1724817698790,0.41316425,59756.0,59755.0,0.0009398]
[1724817699207,0.39916425,59756.0,59755.0,0.0009398]
[1724817699424,0.38516425,59756.0,59755.0,0.0009398]
[1724817699651,0.41316425,59756.0,59755.0,0.0009398]
[1724817700021,0.38516425,59756.0,59755.0,0.0009398]
[1724817700225,0.39916425,59756.0,59755.0,0.0009398]
[1724817701010,0.26038398,59756.0,59755.0,0.0009398]
[1724817701465,0.27438398,59756.0,59755.0,0.0009398]
[1724817704267,0.27520198,59756.0,59755.0,0.0009398]
[1724817706497,0.24720198,59756.0,59755.0,0.0009398]
[1724817706897,0.26120198,59756.0,59755.0,0.0009398]
[1724817707098,0.40257003,59756.0,59755.0,0.0009398]
[1724817707522,0.26120198,59756.0,59755.0,0.0009398]
[1724817708270,0.27520198,59756.0,59755.0,0.0009398]
[1724817711175,0.21350198,59756.0,59755.0,0.0009398]
[1724817716039,0.33000127,59756.0,59755.0,0.0009398]
[1724817718903,0.39600127,59756.0,59755.0,0.0009398]
[1724817719106,0.55056993,59756.0,59755.0,0.0009398]
[1724817719311,0.65028043,59756.0,59755.0,0.0009398]
[1724817719679,0.67520806,59756.0,59755.0,0.0009398]
[1724817720371,0.55056993,59756.0,59755.0,0.0009398]
[1724817721469,0.70013569,59756.0,59755.0,0.0009398]
[1724817721677,0.70091606,59756.0,59755.0,0.0009398]
[1724817722365,0.53656993,59756.0,59755.0,0.0009398]
[1724817722555,0.52256993,59756.0,59755.0,0.0009398]
[1724817722762,0.53656993,59756.0,59755.0,0.0009398]
[1724817722981,0.55056993,59756.0,59755.0,0.0009398]
[1724817723185,0.54727431,59756.0,59755.0,0.0009398]
[1724817723661,0.56127431,59756.0,59755.0,0.0009398]
[1724817724423,0.73041371,59756.0,59755.0,0.0009398]
[1724817724579,0.57584505,59756.0,59755.0,0.0009398]
[1724817724783,0.54784505,59756.0,59755.0,0.0009398]
[1724817725188,0.57584505,59756.0,59755.0,0.0009398]
[1724817725477,0.40670565,59756.0,59755.0,0.0009398]
[1724817725680,0.39270565,59756.0,59755.0,0.0009398]
[1724817725826,0.27620636,59756.0,59755.0,0.0009398]
[1724817726070,0.34070565,59756.0,59755.0,0.0009398]
[1724817727540,0.48304749,59756.0,59755.0,0.0009398]
[1724817727739,0.65250639,59756.0,59755.0,0.0009398]
[1724817728481,0.71700639,59756.0,59755.0,0.0009398]
[1724817731027,0.54754749,59756.0,59755.0,0.0009398]
[1724817731403,0.40520565,59756.0,59755.0,0.0009398]
[1724817731810,0.27931144,59747.0,59746.0,0.06237235]
[1724817732044,0.50904625,59747.0,59746.0,0.06237235]
[1724817732507,0.50904625,59747.0,59745.0,4e-05]
[1724817732508,0.53529446,59747.0,59745.0,4e-05]
[1724817732650,0.1,59746.0,59745.0,4e-05]
[1724817732856,0.104185,59746.0,59745.0,4e-05]
[1724817733278,0.109185,59746.0,59745.0,4e-05]
[1724817733437,0.23473986,59746.0,59745.0,4e-05]
[1724817733865,0.37197974,59746.0,59745.0,4e-05]
[1724817734062,0.24642488,59746.0,59745.0,4e-05]
[1724817734784,0.123185,59746.0,59745.0,4e-05]
[1724817734992,0.137185,59746.0,59745.0,4e-05]
[1724817738788,0.31084485,59746.0,59745.0,0.0009398]
[1724817739040,0.38994485,59746.0,59745.0,0.0009398]
[1724817741342,0.31084485,59746.0,59745.0,0.0009398]
[1724817741935,0.160185,59746.0,59745.0,0.0009398]
[1724817742816,0.30020366,59746.0,59745.0,0.0009398]
[1724817745671,0.032185,59746.0,59745.0,0.25743909]
[1724817745880,0.12854897,59746.0,59745.0,0.25743909]
[1724817746094,0.028,59746.0,59745.0,0.25743909]
[1724817746769,0.37596754,59747.0,59746.0,0.0754]
[1724817746923,0.37595886,59747.0,59746.0,0.1398]
[1724817747124,0.30055965,59747.0,59746.0,0.1358]
[1724817748108,0.02624821,59747.0,59746.0,0.1358]
[1724817748625,0.03124821,59747.0,59746.0,0.14447398]
[1724817748827,0.03124821,59747.0,59746.0,0.1308]
[1724817749352,0.005,59747.0,59746.0,0.1308]
[1724817749536,0.011,59747.0,59746.0,0.1308]
[1724817751308,0.01518445,59747.0,59746.0,0.1308]
[1724817751511,0.39002817,59747.0,59745.0,0.0009398]
[1724817751971,0.10053228,59746.0,59745.0,0.0009398]
[1724817752185,0.10471739,59746.0,59745.0,0.0009398]
[1724817752612,0.09388812,59746.0,59745.0,0.0009398]
[1724817753381,0.10688812,59746.0,59745.0,0.0019398]
[1724817753584,0.11888812,59746.0,59745.0,0.1452398]
[1724817753995,0.02918511,59746.0,59745.0,0.1452398]
[1724817754746,0.00418511,59746.0,59745.0,0.1442398]
[1724817755220,0.011,59746.0,59745.0,0.1442398]
[1724817755448,0.27849631,59747.0,59745.0,0.1442398]
[1724817755566,0.01,59746.0,59745.0,0.1442398]
[1724817755773,0.02,59746.0,59745.0,0.1442398]
[1724817756245,0.01,59746.0,59745.0,0.1442398]
[1724817756433,0.27849631,59747.0,59745.0,0.0613398]
[1724817756638,0.0818,59746.0,59745.0,0.0009398]
[1724817756978,0.085985,59746.0,59745.0,0.0009398]
[1724817757182,0.004185,59746.0,59745.0,0.0009398]
[1724817758182,0.014185,59746.0,59745.0,0.0009398]
[1724817758378,0.024185,59746.0,59745.0,0.0009398]
[1724817760934,0.0995391,59746.0,59745.0,0.0009398]
[1724817762565,0.12466139,59746.0,59745.0,0.0009398]
[1724817762770,0.024185,59746.0,59745.0,0.0009398]
[1724817763392,0.12466139,59746.0,59745.0,0.0009398]
[1724817764053,0.10548039,59746.0,59745.0,0.0009398]
[1724817764288,0.005004,59746.0,59745.0,0.0009398]
[1724817764526,0.019004,59746.0,59745.0,0.0009398]
[1724817764759,0.005004,59746.0,59745.0,0.0009398]
[1724817764992,0.029004,59746.0,59745.0,0.0009398]
[1724817765456,0.015004,59746.0,59745.0,0.0009398]
[1724817766159,0.024004,59746.0,59745.0,0.00088653]
[1724817766871,0.1244747,59746.0,59745.0,0.00088653]
[1724817767071,0.024004,59746.0,59745.0,0.00088653]
[1724817767283,0.014004,59746.0,59745.0,0.00088653]
[1724817767488,0.023004,59746.0,59745.0,0.00088653]
[1724817767661,0.14859389,59746.0,59745.0,0.00088653]
[1724817767863,0.12347894,59746.0,59745.0,0.00088653]
[1724817768065,0.023004,59746.0,59745.0,0.00088653]
[1724817769457,0.12347894,59746.0,59745.0,0.00088653]
[1724817770374,0.12348295,59746.0,59745.0,0.00088653]
[1724817770578,0.023004,59746.0,59745.0,0.00088653]
[1724817771031,0.14859389,59746.0,59745.0,0.06658653]
[1724817771389,0.12348704,59746.0,59745.0,0.06658653]
[1724817773329,0.14859389,59746.0,59745.0,0.00088653]
[1724817774872,0.12348895,59746.0,59745.0,0.00088653]
[1724817775017,0.023004,59746.0,59745.0,0.00088653]
[1724817775224,0.12348864,59746.0,59745.0,0.00088653]
[1724817777217,0.09836608,59746.0,59745.0,0.00088653]
[1724817777458,0.1486098,59746.0,59745.0,0.00088653]
[1724817780043,0.12349445,59746.0,59745.0,0.00088653]
[1724817780869,0.1486098,59746.0,59745.0,0.00088653]
[1724817781073,0.2298098,59746.0,59745.0,0.00088653]
[1724817781273,0.104204,59746.0,59745.0,0.00088653]
[1724817781476,0.70652208,59746.0,59745.0,0.00088653]
[1724817781654,0.85724904,59746.0,59745.0,0.00088653]
[1724817782039,0.70652208,59746.0,59745.0,0.00088653]
[1724817782275,0.85727485,59746.0,59745.0,0.00088653]
[1724817782492,0.69752208,59746.0,59745.0,0.00092653]
[1724817782694,0.85227485,59746.0,59745.0,0.00092653]
[1724817782930,1.03007485,59746.0,59745.0,0.00092653]
[1724817783128,1.01707485,59746.0,59745.0,0.00092653]
[1724817783541,1.00407485,59746.0,59745.0,0.00092653]
[1724817783743,1.01807485,59746.0,59745.0,0.00092653]
[1724817785081,1.03207485,59746.0,59745.0,0.00092653]
[1724817785486,0.95775677,59746.0,59745.0,0.00092653]
[1724817785843,0.81175677,59746.0,59745.0,0.06592653]
[1724817786053,0.638004,59746.0,59745.0,0.00092653]
[1724817787585,0.66375848,59746.0,59745.0,0.00092653]
[1724817790400,0.81451125,59746.0,59745.0,0.00092653]
[1724817791988,0.89751125,59746.0,59745.0,0.00092653]
[1724817792393,0.88928233,59746.0,59745.0,0.00092653]
[1724817793223,0.87532069,59746.0,59745.0,0.00092653]
[1724817793774,0.88932069,59746.0,59745.0,0.00092653]
[1724817794202,0.87532069,59746.0,59745.0,0.00092653]
[1724817794461,0.88932069,59746.0,59745.0,0.00092653]
[1724817795085,0.87532069,59746.0,59745.0,0.00092653]
[1724817795299,1.01492845,59746.0,59745.0,0.00092653]
[1724817795685,0.73852956,59746.0,59745.0,0.00092653]
[1724817796273,0.65552956,59746.0,59745.0,0.00092653]
[1724817796470,0.80635582,59746.0,59745.0,0.00092653]
[1724817796646,0.65552956,59746.0,59745.0,0.00092653]
[1724817799943,0.05052956,59746.0,59745.0,0.26021941]
[1724817800165,0.17205607,59746.0,59745.0,0.26021941]
[1724817800569,0.14691306,59746.0,59745.0,0.26021941]
[1724817800765,0.028819,59746.0,59745.0,0.26021941]
[1724817801386,0.028819,59746.0,59745.0,0.14372653]
[1724817801739,0.014819,59746.0,59745.0,0.14372653]
[1724817802394,0.04106552,59746.0,59745.0,0.14372653]
[1724817802568,0.014819,59746.0,59745.0,0.14372653]
[1724817803190,0.003819,59746.0,59745.0,0.14372653]
[1724817803550,0.007819,59746.0,59745.0,0.14372653]
[1724817804240,0.03406624,59746.0,59745.0,0.14372653]
[1724817807347,0.03406624,59746.0,59745.0,0.15809918]
[1724817807557,0.03406624,59746.0,59745.0,0.06662653]
[1724817810015,0.03406624,59746.0,59745.0,0.00092653]
[1724817812260,0.03825097,59746.0,59745.0,0.00092653]
[1724817813358,0.19251584,59746.0,59745.0,0.00092653]
[1724817813600,0.25741584,59746.0,59745.0,0.00092653]
[1724817813773,0.28253746,59746.0,59745.0,0.00092653]
[1724817814626,0.18205097,59746.0,59745.0,0.00092653]
[1724817814824,0.27851846,59746.0,59745.0,0.00092653]
[1724817815276,0.18705097,59746.0,59745.0,0.00092653]
[1724817815481,0.18405097,59746.0,59745.0,0.00092653]
[1724817816065,0.19305097,59746.0,59745.0,0.00092653]
[1724817821285,0.31863931,59746.0,59745.0,0.00092653]
[1724817822243,0.31863651,59746.0,59745.0,0.00092653]
[1724817822444,0.33616207,59746.0,59745.0,0.00092653]
[1724817824624,0.40935871,59746.0,59745.0,0.00092653]
[1724817825727,0.28377317,59746.0,59745.0,0.00092653]
[1724817826125,0.21057653,59746.0,59745.0,0.00092653]
[1724817826812,0.33616468,59746.0,59745.0,0.00092653]
[1724817827221,0.33616036,59746.0,59745.0,0.00092653]
[1724817830172,0.21057653,59746.0,59745.0,0.00092653]
[1724817832155,0.26057653,59746.0,59745.0,0.00092653]
[1724817832381,0.26557653,59746.0,59745.0,0.00092653]
[1724817832820,0.39628488,59746.0,59745.0,0.00092653]
[1724817833059,0.33206941,59746.0,59745.0,0.00092653]